Cogmind - Beta 16.1 @@@ ROGUE MODE // 2026.03.02 @ 11:38:20 Player: FL-IST Result: Self-destructed Performance ------------- Evolutions (4) 2000 Regions Visited (7) 1400 Robots Destroyed (99) 495 Value Destroyed (2394) 2394 Prototype IDs (28) 560 Alien Tech Used (0) 0 Bonus (296) 296 TOTAL SCORE: 7145 Bonus ------- High Alert Combat Kills 11 Aligned with FarCom 300 Friendly Fire -15 Cogmind --------- Core Integrity 777/850 Matter 200/300 Energy 16/150 System Corruption 1% Temperature Cool (0) Movement Flying (21) Location -6/Factory Parts ------- > --- POWER (1) -------- Light Angular Momentum Engine > --- PROPULSION (6) --- Cesium-ion Thruster Cesium-ion Thruster Cesium-ion Thruster Cesium-ion Thruster Xenon Bombardment Thruster Xenon Bombardment Thruster > --- UTILITY (6) ------ Medium Storage Unit Visual Processing Unit Modified TNC Hacking Suite Improved Trap Extractor (0/6) > --- WEAPON (2) ------- Improved Datajack Katana > --- INVENTORY (10) --- Light Deuterium Engine Improved Light Armor Plating Hacking Suite System Shield System Shield System Restoration Module System Restoration Module Heavy Rocket Launcher Peak State ------------ > --- POWER ------------ Light Angular Momentum Engine > --- PROPULSION ------- Cesium-ion Thruster Cesium-ion Thruster Cesium-ion Thruster Cesium-ion Thruster Xenon Bombardment Thruster Xenon Bombardment Thruster > --- UTILITY ---------- Medium Storage Unit Visual Processing Unit Modified TNC Hacking Suite Improved Trap Extractor > --- WEAPON ----------- Improved Datajack Katana > --- INVENTORY -------- Light Deuterium Engine Improved Light Armor Plating Hacking Suite System Shield System Shield System Restoration Module System Restoration Module Heavy Rocket Launcher [Rating: 49] Favorites ----------- Power Light Deuterium Engine Engine Light Deuterium Engine Power Core Light Fission Core Propulsion Light Treads Treads Light Treads Wheel Wheel Flight Unit Cesium-ion Thruster Utility Medium Storage Unit Device Seismic Detector Storage Medium Storage Unit Processor Visual Processing Unit Hackware Hacking Suite Protection Light Armor Plating Weapon Heavy Assault Rifle Energy Cannon Advanced Beam Cannon Ballistic Gun Heavy Assault Rifle Launcher Heavy Rocket Launcher Impact Weapon Mace Slashing Weapon Katana Special Melee Weapon Improved Datajack Build | -11 -10 -10 -10 -9 -8 -7 -6 ------- Run | Yrd Mat Min Exi Min Mat Fac Fac Slots Evolved 8 | . . . . . 4 2 2 Power . | . . . . . . . . Propulsion 4 | . . . . . 2 1 1 Utility 4 | . . . . . 2 1 1 Weapon . | . . . . . . . . Parts Attached 59 | 7 7 2 . . 22 15 6 Power 8 | 1 . . . . 5 . 2 Engine 7 | 1 . . . . 5 . 1 Core 1 | . . . . . . . 1 Reactor . | . . . . . . . . Propulsion 22 | 2 2 1 . . 8 6 3 Treads 12 | 2 1 1 . . 8 . . Leg . | . . . . . . . . Wheel 1 | . 1 . . . . . . Hover . | . . . . . . . . Flight 9 | . . . . . . 6 3 Utility 13 | 2 3 . . . 3 4 1 Device 3 | 1 1 . . . . 1 . Storage 2 | 1 1 . . . . . . Processor 2 | . . . . . . 1 1 Hackware 2 | . . . . . 1 1 . Protection 4 | . 1 . . . 2 1 . Artifact . | . . . . . . . . Weapon 16 | 2 2 1 . . 6 5 . Energy Gun . | . . . . . . . . Energy Cannon 1 | . . . . . 1 . . Ballistic Gun 9 | 2 2 1 . . 4 . . Ballistic Cannon . | . . . . . . . . Launcher 3 | . . . . . 1 2 . Special Weapon . | . . . . . . . . Impact Weapon 1 | . . . . . . 1 . Slashing Weapon 1 | . . . . . . 1 . Piercing Weapon . | . . . . . . . . Special Melee Weapon 1 | . . . . . . 1 . Unidentified Prototypes 3 | . . . . . 1 1 1 Parts Lost 11 | . 4 . . . 3 1 3 Power 3 | . 1 . . . 1 . 1 Propulsion 6 | . 2 . . . 2 1 1 Utility 2 | . 1 . . . . . 1 Weapon . | . . . . . . . . Highest Loss Streak 3 | . 2 . . . 1 1 3 To Critical Strikes . | . . . . . . . . Average Backups 9 | 2 8 8 9 10 9 8 9 Power . | . . . . . . . . Propulsion 2 | 1 . . 1 1 3 2 . Utility 4 | . 4 5 5 6 3 4 6 Weapon 2 | . 3 3 2 3 2 1 1 Tool/Special . | . . . . . . . . Unused Backups 24 | . 5 . . . 10 4 5 Power . | . . . . . . . . Propulsion 10 | . 3 . . . 5 2 . Utility 8 | . 1 . . . . 2 5 Weapon 6 | . 1 . . . 5 . . Tool/Special . | . . . . . . . . Average Slot Usage (%) 92 | . 93 85 85 85 94 94 91 Engine 6 | . 9 . . . 7 7 2 Treads 23 | . 22 24 28 28 34 . . Wheel 1 | . 4 3 . . . . . Flight 8 | . . . . . . 36 39 Device 5 | . 7 . . . 8 2 6 Storage 10 | . 14 14 14 14 9 7 6 Processor 1 | . . . . . . 6 7 Hackware 6 | . . . . . 8 14 11 Protection 8 | . 6 14 14 14 9 5 . Energy Cannon 1 | . . . . . 4 . . Ballistic Gun 16 | . 28 28 28 28 13 . . Slashing Weapon 1 | . . . . . . 4 6 Peak Build Rating 49 | 7 10 9 10 10 26 41 49 Average Rating 20 | 5 9 9 9 10 21 36 45 On Entrance 14 | . 7 9 9 10 10 26 41 Avg Prop Armor Cover (%) 9 | . 10 10 . . . . 2 Naked Turns . | . . . . . . . . Heaviest Build 27 | 14 24 19 19 19 27 27 25 Greatest Support 83 | 40 40 40 40 40 83 83 38 Greatest Overweight (x) 1 | . 1 1 . . . 1 . Average Overweight (x) . | . . . . . . . . Largest Inventory Capacity 10 | 8 10 10 10 10 10 10 10 Average Capacity 9 | 6 9 10 10 10 10 10 10 Most Carried 10 | 5 10 10 10 10 10 10 10 Average Carried 9 | 2 8 9 9 10 9 8 9 Final Capacity 10 | 8 10 10 10 10 10 10 10 Final Carried 10 | 5 9 10 10 10 10 10 8 Class Distribution -------------------- 42% | Mutant 37% | Scavenger-Mutant 18% | Hacker-Sprinter Dominant Class ---------------- Mutant | -10/Materials Mutant | -10/Mines Mutant | -10/Exiles Mutant | -9/Mines Scavenger-Mutant | -8/Materials Hacker-Sprinter | -7/Factory Hacker-Sprinter | -6/Factory Resources | -11 -10 -10 -10 -9 -8 -7 -6 ----------- Run | Yrd Mat Min Exi Min Mat Fac Fac Matter Collected 2226 | 306 474 . . . 1111 295 40 Remotely . | . . . . . . . . Salvage Created 3350 | 126 934 58 . . 1599 620 13 Parts 191 | 11 61 1 . . 89 29 . Haulers Intercepted 7 | . 2 . . . 4 1 . Recyclers Shooed 4 | . 4 . . . . . . Parts Field Recycled . | . . . . . . . . Retrieved Matter . | . . . . . . . . Parts Self-Destructed . | . . . . . . . . Prevented . | . . . . . . . . Parts Restored . | . . . . . . . . Kills | -11 -10 -10 -10 -9 -8 -7 -6 ------- Run | Yrd Mat Min Exi Min Mat Fac Fac Combat Hostiles Destroyed 53 | . 17 1 . . 27 8 . Guns 36 | . 17 1 . . 18 . . Cannons 6 | . . . . . 6 . . AOE 11 | . . . . . 3 8 . Classes Destroyed 13 | 2 6 1 . . 3 1 . Worker 13 | . 2 . . . 7 4 . Builder 2 | . . . . . 1 1 . Tunneler 4 | 3 1 . . . . . . Hauler 7 | . 2 . . . 4 1 . Recycler 5 | 1 2 . . . . 2 . Operator 5 | . 2 . . . 1 1 1 Watcher 10 | . 3 . . . 4 3 . Swarmer 16 | . 6 . . . 7 3 . Grunt 26 | . 11 . . . 11 4 . Duelist 1 | . . . . . 1 . . Sentry 8 | . . 1 . . 7 . . Hunter 1 | . . . . . 1 . . Programmer 1 | . . . . . . 1 . Best Kill Streak 9 | 3 5 1 . . 6 9 . Combat Bots Only 5 | . 5 1 . . 4 5 . Max Kills in Single Turn 4 | 1 2 1 . . 4 3 1 Gunslinging 1 | . 1 . . . . . . Exploded 3 | . . . . . 3 3 . Melee . | . . . . . . . . Uniques/NPCs Destroyed . | . . . . . . . . Combat | -11 -10 -10 -10 -9 -8 -7 -6 -------- Run | Yrd Mat Min Exi Min Mat Fac Fac Hostile Shots Fired 248 | . 84 8 . . 132 20 4 Missed 66 | . 20 2 . . 32 9 3 Hits 182 | . 64 6 . . 100 11 1 Projectile 182 | . 64 6 . . 100 11 1 Critical Strikes 9 | . 1 . . . 8 . . Damage Taken 2684 | . 664 91 . . 1400 350 179 Core 486 | . 120 18 . . 206 69 73 Absorbed by Shields . | . . . . . . . . Core Remaining (%) 74 | 100 . . . 44 62 90 . Volleys Fired 229 | 9 69 5 . . 136 10 . Largest 2 | 2 2 2 . . 2 1 . Hottest 96 | 40 46 46 . . 96 39 . Shots Fired 447 | 18 138 10 . . 271 10 . Gun 386 | 18 138 10 . . 220 . . Cannon 50 | . . . . . 50 . . Launcher 11 | . . . . . 1 10 . Special . | . . . . . . . . Kinetic 386 | 18 138 10 . . 220 . . Thermal 50 | . . . . . 50 . . Explosive 11 | . . . . . 1 10 . Electromagnetic . | . . . . . . . . Robot Hit Streak 13 | 5 9 4 . . 13 2 . Robot Miss Streak 5 | 2 3 1 . . 5 1 . Penetration Max 1 | . . . . . 1 . . Secondary Targets 7 | . 4 . . . 3 . . Max Gunslinging Chain 1 | . 1 . . . 1 . . Shots Hit Robots 305 | 11 89 7 . . 173 19 6 Core Hits 139 | 5 40 2 . . 69 23 . Critical Kills . | . . . . . . . . Critical Parts Destroyed 2 | . . . . . 1 1 . Critical Strikes 2 | . . . . . 1 1 . Destroy 1 | . . . . . 1 . . Smash 1 | . . . . . . 1 . Melee Attacks 50 | . . . . . . 41 9 Impact 13 | . . . . . . 13 . Slashing 32 | . . . . . . 28 4 Piercing . | . . . . . . . . Sneak Attacks 15 | . . . . . . 9 6 Combat Hostiles . | . . . . . . . . Follow-up Attacks . | . . . . . . . . Damage Inflicted 6813 | 112 1361 119 . . 3363 1749 109 Guns 4020 | 112 1361 119 . . 2428 . . Cannons 716 | . . . . . 716 . . Explosions 996 | . . . . . 216 774 6 Melee 1078 | . . . . . . 975 103 Ramming 3 | . . . . . 3 . . Kinetic 4020 | 112 1361 119 . . 2428 . . Thermal 926 | . . . . . 716 210 . Explosive 717 | . . . . . 216 501 . Electromagnetic 69 | . . . . . . 63 6 Impact 285 | . . . . . . 285 . Slashing 793 | . . . . . . 690 103 Piercing . | . . . . . . . . Highest Corruption 2 | . . . . . . 2 1 Average Corruption 1 | . . . . . . 1 1 Corruption Purged . | . . . . . . . . Corruption Blocked . | . . . . . . . . Overload Shots . | . . . . . . . . Overflow Damage 427 | . . . . . 10 354 63 Projectiles 10 | . . . . . 10 . . Explosions 76 | . . . . . . 76 . Melee 341 | . . . . . . 278 63 Knockbacks 1 | . . . . . . 1 . Impact 1 | . . . . . . 1 . Kinetic . | . . . . . . . . Secondary . | . . . . . . . . Self-Inflicted Damage 259 | . . . . . . 179 80 Shots 7 | . . . . . . 5 2 Rammed 1 | . . . . . 1 . . Targets Rammed 1 | . . . . . 1 . . Kicked . | . . . . . . . . Crushed . | . . . . . . . . Highest Temperature 330 | . 22 2 . . 330 30 292 Average Temperature 35 | . 6 2 . . 58 8 37 Received Heat Transfer 1014 | . 261 27 . . 720 6 . Effects 2 | . . . . . 2 . . Energy Bleed 2 | . . . . . 2 . . Siege Activations . | . . . . . . . . Martial Activations . | . . . . . . . . Shielding Activations . | . . . . . . . . Robots Disrupted 1 | . . . . . . 1 . Combat Hostiles 1 | . . . . . . 1 . Robots Corrupted 1 | . . . . . . 1 . Combat Hostiles . | . . . . . . . . Parts Fried 5 | . . . . . . 5 . Impact Corruptions 4 | . . . . . . 4 . Robots Melted . | . . . . . . . . Combat Hostiles . | . . . . . . . . Parts Melted 1 | . . . . . 1 . . Heat Transferred 1408 | . . . . . 1258 150 . Parts Sabotaged . | . . . . . . . . Parts Stolen . | . . . . . . . . Parts Stripped . | . . . . . . . . Power Chain Reactions 1 | . . . . . . . 1 Alert | -11 -10 -10 -10 -9 -8 -7 -6 ------- Run | Yrd Mat Min Exi Min Mat Fac Fac Maximum Alert Level 2 | . 1 . . . 2 2 . Low Security (%) 72 | 100 99 100 . 100 60 48 100 Level 1 23 | . . . . . 38 32 . Level 2 4 | . . . . . 1 19 . Level 3 . | . . . . . . . . Level 4 . | . . . . . . . . Level 5 . | . . . . . . . . High Security . | . . . . . . . . Max Security . | . . . . . . . . Peak Influence 445 | 5 205 63 . . 404 445 193 Initial 193 | . . 63 . . . 169 193 Average 162 | . 93 24 . . 191 256 133 Influence Increases 2231 | 20 588 20 . . 964 628 11 Destroy 0b10 Robot/C 1060 | . 340 20 . . 540 160 . Destroy 0b10 Robot/NC 225 | 20 60 . . . 85 60 . Destroy Leader 264 | . 80 . . . 146 38 . Successful Hack 117 | . 45 . . . 40 31 1 Select Force Hacks 60 | . 60 . . . . . . Disable Machine 240 | . . . . . 75 165 . Destroy Structure 100 | . 3 . . . 18 69 10 Partial Spotted 45 | . . . . . . 45 . Lose Combat Pursuer 120 | . . . . . 60 60 . Influence Decreases 2177 | 20 424 184 . . 591 606 352 Entered New Map 507 | . . 101 . . . 204 202 Time Decay 1560 | 20 384 83 . . 561 392 120 Lost Part 110 | . 40 . . . 30 10 30 Squads Dispatched 11 | . 3 . . . 2 4 2 Investigation 4 | . 2 . . . . 1 1 Extermination 2 | . . . . . . 2 . Reinforcement 5 | . 1 . . . 2 1 1 Assault . | . . . . . . . . Garrison . | . . . . . . . . Intercept . | . . . . . . . . Searches Triggered . | . . . . . . . . Construction Impeded 1 | . . . . . 1 . . Haulers Reinforced 1 | . . . . . . . 1 Active Scanning Responses . | . . . . . . . . Cargo Convoy Interrupts 1 | . . . . . . 1 . Stealth | -11 -10 -10 -10 -9 -8 -7 -6 --------- Run | Yrd Mat Min Exi Min Mat Fac Fac Distress Signals 4 | . 1 . . . 2 1 . Communications Jammed . | . . . . . . . . Distress Signals . | . . . . . . . . Times Spotted 110 | . 28 1 . 2 45 30 4 Peak Tracking Total 13 | . 5 1 . 2 5 13 3 Tactical Retreats 5 | . . . . . 3 2 . Traps | -11 -10 -10 -10 -9 -8 -7 -6 ------- Run | Yrd Mat Min Exi Min Mat Fac Fac Traps Triggered 11 | . . . . . 1 3 7 Indirectly . | . . . . . . . . Trap Hack Attempts . | . . . . . . . . Triggered . | . . . . . . . . Disarmed . | . . . . . . . . Reprogrammed . | . . . . . . . . Reused . | . . . . . . . . Traps Extracted . | . . . . . . . . Installed . | . . . . . . . . Triggered . | . . . . . . . . Machines | -11 -10 -10 -10 -9 -8 -7 -6 ---------- Run | Yrd Mat Min Exi Min Mat Fac Fac Machines Disabled 16 | . . . . . 5 11 . Max in Single Turn 5 | . . . . . 1 5 . Garrison Access 3 | . . . . . 1 1 1 Machines Repaired . | . . . . . . . . Machines Dismantled . | . . . . . . . . Machines Sabotaged . | . . . . . . . . Overloaded Fab Kills . | . . . . . . . . Hacking | -11 -10 -10 -10 -9 -8 -7 -6 --------- Run | Yrd Mat Min Exi Min Mat Fac Fac Machines Accessed 38 | . 9 . 2 . 9 12 6 Terminals 24 | . 7 . . . 6 8 3 Fabricators 1 | . . . . . . . 1 Repair Stations . | . . . . . . . . Recycling Units 5 | . 2 . . . . 2 1 Scanalyzers 3 | . . . . . 2 1 . Garrison Access 3 | . . . . . 1 1 1 Total Hacks 94 | . 26 . 2 . 29 28 9 Successful 57 | . 18 . 2 . 16 15 6 Failed 36 | . 8 . . . 12 13 3 Catastrophic 4 | . 1 . . . 1 2 . Database Lockouts 1 | . . . . . 1 . . Manual 69 | . 24 . 1 . 21 19 4 Terminals 70 | . 22 . . . 22 20 6 Fabricators 1 | . . . . . . . 1 Repair Stations . | . . . . . . . . Recycling Units 9 | . 4 . . . . 4 1 Scanalyzers 8 | . . . . . 6 2 . Garrison Access 4 | . . . . . 1 2 1 Terminal Hacks 11 | . 1 . 2 . 2 4 2 Record 1 | . . . 1 . . . . Part Schematic 1 | . . . . . . 1 . Robot Analysis 2 | . 1 . . . 1 . . Prototype ID Bank 1 | . . . . . 1 . . Locate Traps 5 | . . . . . . 3 2 Proto ID Catalog 1 | . . . 1 . . . . Fabricator Hacks 1 | . . . . . . . 1 Network Status 1 | . . . . . . . 1 Repair Station Hacks . | . . . . . . . . Recycling Unit Hacks 4 | . 2 . . . . 1 1 Retrieve Components 4 | . 2 . . . . 1 1 Scanalyzer 7 | . . . . . 5 2 . Insert Component 2 | . . . . . 2 . . Analyze 2 | . . . . . 2 . . Retrieve Study 3 | . . . . . 1 2 . Garrison Access Hacks 3 | . . . . . 1 1 1 Seal Access 3 | . . . . . 1 1 1 Unauthorized Hacks 31 | . 15 . . . 8 7 1 Terminals 29 | . 13 . . . 8 7 1 Assimilate 1 | . . . . . . . 1 Botnet 14 | . 7 . . . 3 4 . Skim 14 | . 6 . . . 5 3 . Fabricators . | . . . . . . . . Repair Stations . | . . . . . . . . Recycling Units 2 | . 2 . . . . . . Tunnel 2 | . 2 . . . . . . Scanalyzers . | . . . . . . . . Garrison Access . | . . . . . . . . Data Cores Recovered 1 | . 1 . . . . . . Used . | . . . . . . . . Hacking Detections 26 | . 8 . . . 7 8 3 Full Trace Events 2 | . . . . . . 1 1 Feedback Events 1 | . . . . . . . 1 Corruption 1 | . . . . . . . 1 Feedback Blocked . | . . . . . . . . Robot Schematics Acquired . | . . . . . . . . Robots Built . | . . . . . . . . Authchips . | . . . . . . . . Time . | . . . . . . . . Total Robot Build Rating . | . . . . . . . . Part Schematics Acquired 3 | . . . . . 2 1 . Parts Built . | . . . . . . . . Authchips . | . . . . . . . . Time . | . . . . . . . . Total Part Build Rating . | . . . . . . . . Part Studies Acquired 3 | . . . . . 1 2 . Parts Repaired . | . . . . . . . . Time . | . . . . . . . . Parts Recycled . | . . . . . . . . Recycled Matter . | . . . . . . . . Retrieved Matter . | . . . . . . . . Retrieved Components 17 | . 13 . . . . 2 2 Parts Scanalyzed 2 | . . . . . 2 . . Part Schematics Acquired 2 | . . . . . 2 . . Parts Damaged . | . . . . . . . . Bothacking | -11 -10 -10 -10 -9 -8 -7 -6 ------------ Run | Yrd Mat Min Exi Min Mat Fac Fac Used RIF Installer . | . . . . . . . . Robots Hacked 3 | . . . . . . . 3 Non-combat 3 | . . . . . . . 3 Combat . | . . . . . . . . Robot Hacks Applied 5 | . . . . . . . 5 parse_system 2 | . . . . . . . 2 no_distress 1 | . . . . . . . 1 find_chute 1 | . . . . . . . 1 find_recycling 1 | . . . . . . . 1 Relay Couplers Released . | . . . . . . . . Fabnet Peak Effective % . | . . . . . . . . Robots Rewired . | . . . . . . . . Allies Hacked . | . . . . . . . . Hacks Repelled . | . . . . . . . . Allies | -11 -10 -10 -10 -9 -8 -7 -6 -------- Run | Yrd Mat Min Exi Min Mat Fac Fac Total Allies 1 | . . . . . . . 1 Largest Group 1 | . . . . . . . 1 Highest-Rated Group 10 | . . . . . . . 10 Highest-Rated Ally 10 | . . . . . . . 10 Total Orders . | . . . . . . . . Ally Attacks . | . . . . . . . . Total Damage . | . . . . . . . . Kills . | . . . . . . . . Allies Corrupted . | . . . . . . . . Allies Melted . | . . . . . . . . Intel | -11 -10 -10 -10 -9 -8 -7 -6 ------- Run | Yrd Mat Min Exi Min Mat Fac Fac Active Infowar (turns) 3094 | 50 639 . . . 1232 933 240 Optics 1135 | . . . . . . 895 240 Seismic 1959 | 50 639 . . . 1232 38 . T.N.C. 42 | . . . . . . . 42 Robot Analysis Total 2 | . 1 . . . 1 . . Derelict Logs Recovered 1 | . . 1 . . . . . Drone Launches . | . . . . . . . . Drone Recoveries . | . . . . . . . . Exploration | -11 -10 -10 -10 -9 -8 -7 -6 ------------- Run | Yrd Mat Min Exi Min Mat Fac Fac Turns Passed 5502 | 149 1173 271 524 13 2198 934 240 Spaces Moved 4243 | 70 677 164 326 9 896 1750 351 Core 4 | 4 . . . . . . . Treads 1790 | 66 345 131 326 9 896 17 . Legs . | . . . . . . . . Wheels 365 | . 332 33 . . . . . Hover . | . . . . . . . . Flight 2084 | . . . . . . 1733 351 Fastest Speed 21 | 50 95 95 160 160 160 23 21 Average Speed 88 | 153 129 146 160 160 161 26 21 Slowest Speed 240 | 160 240 160 160 160 163 162 24 Overloaded Moves . | . . . . . . . . Propulsion Burnouts . | . . . . . . . . Robots Hopped 1 | . . . . . . 1 . Potential Cave-ins . | . . . . . . . . Cave-ins Triggered . | . . . . . . . . Exploration Rate (%) 42 | 4 97 31 61 9 71 52 13 Regions Visited 7 Branch Regions 3 Pre-discovered Areas 4 | . 2 . 1 . 1 . . Known Exits Taken . | . . . . . . . . Unknown Exits Taken 7 | 1 1 1 1 1 1 1 . Scrap Searched . | . . . . . . . . Spaces Dug 15 | . . . . . . 12 3 Terrain Destroyed 103 | . . . . . 15 77 11 Melee 15 | . . . . . . 12 3 Projectile 2 | . . . . . 2 . . AOE 86 | . . . . . 13 65 8 Terrain Rammed . | . . . . . . . . Walls Destroyed . | . . . . . . . . Machines Disabled . | . . . . . . . . Actions | -11 -10 -10 -10 -9 -8 -7 -6 --------- Run | Yrd Mat Min Exi Min Mat Fac Fac Total 5525 | 93 836 186 330 8 1408 2158 506 Wait 793 | 1 66 9 1 . 307 281 128 Move 4234 | 69 676 163 325 8 895 1747 351 Hop 1 | . . . . . . 1 . Pick Up 57 | 7 10 3 2 . 19 14 2 Fast Attach 25 | 5 1 1 . . 8 3 7 Attach 27 | 2 2 . . . 6 11 6 Detach 3 | . . . . . . 3 . Swap 22 | . 5 1 . . 12 2 2 Drop 53 | . 7 4 2 . 24 15 1 Fire 229 | 9 69 5 . . 136 10 . Melee 50 | . . . . . . 41 9 Ram . | . . . . . . . . Kick . | . . . . . . . . Crush 1 | . . . . . 1 . . Escape Stasis 30 | . . . . . . 30 . Rewire . | . . . . . . . . Trap . | . . . . . . . . Miscellaneous . | . . . . . . . . Route ------- -11/Scrapyard -10/Materials (discovered 5 exits: *Mat x3 / [*Min] / *Sub) -10/Mines -10/Exiles -9/Mines -8/Materials -7/Factory (discovered 5 exits: *Fac x3 / *Low x2) -6/Factory (discovered 1 exit: Low) History --------- Turn | Location | Event 3 | -11/Scrapyard | Discovered new exit (range 15) 150 | -11/Scrapyard | Entered Materials 160 | -10/Materials | Discovered new exit (range 15) 331 | -10/Materials | Build established: Mutant 465 | -10/Materials | Discovered new exit (range 8) 570 | -10/Materials | Discovered new exit (range 12) 799 | -10/Materials | Loaded intel: 17 trap records 835 | -10/Materials | Discovered new exit (range 13) 837 | -10/Materials | Learned Recycling recycling unit intel 867 | -10/Materials | Learned location of 1 exit from Recycling 885 | -10/Materials | Learned 4 Subcaves zone layouts 895 | -10/Materials | Learned location of 1 exit from Storage 896 | -10/Materials | Identified exit to Materials 926 | -10/Materials | Identified exit to Subcaves 957 | -10/Materials | Learned 4 Subcaves zone layouts 999 | -10/Materials | Learned location of 1 exit from Storage 1323 | -10/Materials | Entered Mines 1324 | -10/Mines | Met a Derelict testing a Signal Generator 1326 | -10/Mines | Found Signal Generator 1372 | -10/Mines | Core integrity fell below 50% 1482 | -10/Mines | Learned Materials terminal intel 1579 | -10/Mines | Deemed a non-threat by the Exiles lab entrance 1581 | -10/Mines | Discovered new exit (range 5) 1594 | -10/Mines | Entered Exiles 1633 | -10/Exiles | Met 8R-AWN 1662 | -10/Exiles | Met EX-HEX 1724 | -10/Exiles | Met EX-DEC 1740 | -10/Exiles | Learned location of Zion (-6) 1777 | -10/Exiles | Met EX-BIN 1799 | -10/Exiles | Aligned with FarCom system 1801 | -10/Exiles | Given EX-Vault access code 1842 | -10/Exiles | Opened EX-Vault 1859 | -10/Exiles | Found Modified TNC 1901 | -10/Exiles | Warned to stay clear of 0b10 Research branches 2102 | -10/Exiles | Discovered new exit (range 10) 2118 | -10/Exiles | Left Exiles lab with Modified TNC 2118 | -10/Exiles | Entered Mines 2125 | -9/Mines | Discovered new exit (range 4) 2128 | -9/Mines | Met a Derelict bent on vengeance 2131 | -9/Mines | Entered Materials 2131 | -8/Materials | Evolved 4 slots: Propulsion x2, Utility x2 2132 | -8/Materials | Loaded intel: 12 terminal locations 2611 | -8/Materials | Build established: Scavenger-Mutant 3892 | -8/Materials | Central database locked down 3921 | -8/Materials | Discovered new exit (range 9) 4099 | -8/Materials | Learned location of Extension (-4) 4163 | -8/Materials | Learned location of 1 exit from Recycling 4265 | -8/Materials | Learned 4 Recycling zone layouts 4322 | -8/Materials | Learned location of 1 exit from Storage 4329 | -8/Materials | Entered Factory 4329 | -7/Factory | Evolved 2 slots: Propulsion x1, Utility x1 4330 | -7/Factory | Identified exit to Lower Caves 4457 | -7/Factory | Found Prototype Launcher 4457 | -7/Factory | Identified Rocket Array 4622 | -7/Factory | Discovered new exit (range 9) 4663 | -7/Factory | Build established: Hacker-Sprinter 4904 | -7/Factory | Discovered new exit (range 17) 5028 | -7/Factory | Discovered new exit (range 16) 5240 | -7/Factory | Cargo convoy interrupted 5263 | -7/Factory | Entered another Factory area 5263 | -6/Factory | Evolved 2 slots: Propulsion x1, Utility x1 5264 | -6/Factory | Identified exit to Lower Caves 5469 | -6/Factory | Lost 3 parts (1p1n1u) 5503 | -6/Factory | Self-destructed Last Messages --------------- 05490_ Triggered Blade Trap. 05490_ Massive razor-sharp blades shoot up from within the floor. 05490_ Lgt. Angular Momentum Engine severed. 05490_ Xenon Bombardment Thruster+ severed. 05490_ Acquired Lgt. Angular Momentum Engine. 05492_ Acquired Xenon Bombardment Thruster+. 05495_ Triggered Blade Trap. 05495_ Massive razor-sharp blades shoot up from within the floor. 05495_ Xenon Bombardment Thruster+ severed. 05495_ Katana severed. 05495_ Acquired Xenon Bombardment Thruster+. 05497_ Acquired Katana. 05499_ Triggered Blade Trap. 05499_ Massive razor-sharp blades shoot up from within the floor. 05499_ Cesium-ion Thruster+ severed. 05499_ Acquired Cesium-ion Thruster+. 05501_ Triggered Blade Trap. 05501_ Massive razor-sharp blades shoot up from within the floor. 05501_ Lgt. Angular Momentum Engine severed. 05501_ Acquired Lgt. Angular Momentum Engine. Map ----- +----------------------------------------------------+ | # # """ """ """ """ """ """ """ """ """ """ | | # ] /# """ """ """ """ """ """ """ """ """ """ | | # # """ """ """ """ """ """ """ """ """ """ | | # " " + | | ## "G" # | | ?# " # | | ?# ## ##?#??#############/#####+### | | ?######## #?????????# T # | | ????????# #?????????# # | | ????????# ########+#?????????# + | | ????????# #??????????????????# # | | ????????# #??????????????????# # []] | | ????????# #???????????????"??# # ]] | | ????????# #???????????????""?# # ]] | | ######### #???????????????""?# % # | | # #??????????????? ?# # | | """ !# # ??????????????#+## # | | """ # ##+########?????# ## # ! | | """ # #?????# ## = # | | + #?????# #################### | | ! """ # s #?????# #?###############??? | | """ ##+###+####s #???### ### #??? | | """ #?????????# s ##### k # """""??????? | | #?????????# # """"""?????? | | #########? ]]] + k t T + """"""?????? | | ?????????? ]]] # ^@ # = """"""?????? | | ????????????? ????######### # #??? | | ??????????????????########## ################??? | | ??????????????????# # # ???### | | ??????????????????? """ / + """"""????????# | | ??????????????????? """ # # """"""????????# | | ???????????????????? """ # #??""""?????????#= | | ????????????????????? ?# #????""?????????# | | ????????????????????? ""??# #???????????????# | | ???????????????????? "???# #???????????????# | | ???????????????????? ????# #???????????????# " | | ??????????????????? ? ?h???# #???????????????# " | | ??????????????????#????????# #???????????????### | | ??????????????????????h????# #?????????????????? | | ???????????????????????????# #?????????????????? | | ???????????????????????????# #?????###########?? | | ???????????????????????????# #?###? ??? | | ???????????????????????????# ### ## ????? | | ???????????????????????????# ### """ ""?????? | | ???????????????????????????# """ """????? | | ???????????????????????????# """ """ "??? | | ???????????????????????????# | | ???????????????????????????###### # | | ???????????????????????????????# ##+########### | | ???????????????????????????##### % | +----------------------------------------------------+ Best States ------------- Heat Dissipation 37 Energy Generation 18 Energy Capacity 250 Matter Stores 300 Matter Capacity 300 Sight Range 18 Terrain Scan Density 10 Armor Coverage 150 Evasion (%) 65 Recoil Reduction 4 Offensive Hacking 20 Trap Extractor Capacity 6 Item Schematics ----------------- Cesium-ion Thruster | -8/Materials | Scanalyzed Lgt. Armor Plating | -8/Materials | Scanalyzed Imp. Trap Extractor | -7/Factory | Hacked Robot Schematics ------------------ None Fabricated ------------ Nothing Repaired ---------- Nothing Studied --------- Imp. Grenade Launcher | -8/Materials | Hacked Cesium-ion Thruster | -7/Factory | Hacked Xenon Bombardment Thruster | -7/Factory | Hacked Alien Tech Used ----------------- None Achievements -------------- None Challenges ------------ None Game ------ Seed RainbowAnalysisCharger Manual? 0 Play Time 00:42:58 Cumulative 317.6 hours Start 2026.03.02 @ 06:04:07 End 2026.03.02 @ 11:38:20 Sessions 3 Manual Loads 0 Difficulty Rogue Special Mode None Game No. 253 Rogue 253 Adventurer 0 Explorer 0 Win Type - Total 18 Types 9/0/7/2/0/0/0/0/0/0 Lore% 85 Gallery% 75 Achievement% 61 Wizard Run 0 Options --------- Layout 1 ASCII 0 Keyboard 0 Movement Numpad Keybinds 0 Fullscreen 1 Font 32/SmallcapsGlow Map View 77x35 Zoom Use 0% Tactical HUD 1 Map Filters NONE Filters NONE Steam 1 RUN: f609e70a-cdba-426b-8255-b94fa989da9a